lending/lending_fUSD_20250318
["ID","MTS","AMOUNT","RATE_DAILY","PERIOD"]
[356349970,1742324805396,-150.0,9.781e-05,2]
[356349971,1742324805419,-150.0,9.783e-05,2]
[356349972,1742324805443,-150.0,9.785e-05,2]
[356349973,1742324805466,-150.0,9.786e-05,2]
[356349974,1742324805490,-150.0,9.792e-05,2]
[356349975,1742324805514,-150.0,9.794e-05,2]
[356349976,1742324805537,-150.0,9.794e-05,2]
[356349977,1742324805560,-150.0,9.799e-05,2]
[356349978,1742324805583,-150.0,9.8e-05,2]
[356349979,1742324805607,-150.0,9.802e-05,2]
[356349980,1742324805630,-150.0,9.805e-05,2]
[356349981,1742324805653,-150.0,9.806e-05,2]
[356349982,1742324805676,-150.0,9.815e-05,2]
[356349983,1742324805700,-150.0,9.817e-05,2]
[356349984,1742324805724,-150.0,9.817e-05,2]
[356349985,1742324805747,-150.0,9.818e-05,2]
[356349986,1742324805769,-150.0,9.823e-05,2]
[356349987,1742324805793,-150.0,9.824e-05,2]
[356349988,1742324805816,-150.0,9.824e-05,2]
[356349989,1742324805839,-150.0,9.825e-05,2]
[356349990,1742324805863,-150.0,9.839e-05,2]
[356349991,1742324805885,-150.0,9.84e-05,2]
[356349992,1742324805907,-230.46115118,9.843e-05,2]
[356349993,1742324805930,-150.0,9.844e-05,2]
[356349994,1742324805954,-150.0,9.844e-05,2]
[356349995,1742324805977,-150.0,9.847e-05,2]
[356349996,1742324806001,-150.0,9.849e-05,2]
[356349997,1742324806027,-150.0,9.852e-05,2]
[356349998,1742324806052,-150.0,9.853e-05,2]
[356349999,1742324806076,-150.0,9.854e-05,2]
[356350000,1742324806099,-1000.0,9.863e-05,2]
[356350001,1742324806125,-150.0,9.864e-05,2]
[356350002,1742324806148,-1013.0,9.865e-05,2]
[356350003,1742324806171,-1114.0,9.865e-05,2]
[356350004,1742324806196,-150.0,9.87e-05,2]
[356350005,1742324806220,-150.0,9.87e-05,2]
[356350006,1742324806243,-150.0,9.875e-05,2]
[356350007,1742324806267,-150.0,9.877e-05,2]
[356350008,1742324806292,-150.0,9.881e-05,2]
[356350009,1742324806317,-150.0,9.881e-05,2]
[356350010,1742324806340,-150.0,9.884e-05,2]
[356350011,1742324806364,-150.0,9.886e-05,2]
[356350012,1742324806388,-150.0,9.889e-05,2]
[356350013,1742324806412,-150.0,9.89e-05,2]
[356350014,1742324806437,-150.0,9.89e-05,2]
[356350015,1742324806461,-150.0,9.891e-05,2]
[356350016,1742324806486,-150.0,9.892e-05,2]
[356350017,1742324806513,-150.0,9.893e-05,2]
[356350018,1742324806536,-150.0,9.899e-05,2]
[356350019,1742324806559,-43.55884882,9.9e-05,2]
[356350020,1742324814247,-150.0,8.941e-05,2]
[356350041,1742325031893,-17.49,8.941e-05,2]
[356350043,1742325031904,-250.0,9.329e-05,2]
[356350045,1742325031914,-150.0,9.329e-05,2]
[356350047,1742325031923,-150.0,9.717e-05,2]
[356350049,1742325031933,-150.0,9.725e-05,2]
[356350051,1742325031943,-150.0,9.727e-05,2]
[356350053,1742325031952,-56.46,9.746e-05,2]
[356350056,1742325031972,-93.54,9.746e-05,2]
[356350058,1742325031982,-150.0,9.75e-05,2]
[356350060,1742325031991,-150.0,9.759e-05,2]
[356350062,1742325032001,-226.795,9.76e-05,2]
[356350064,1742325032014,-499.78295877,9.76e-05,2]
[356350068,1742325032051,-374.252,9.76e-05,2]
[356350090,1742325032264,-256.54004123,9.76e-05,2]
[356350093,1742325032275,-150.0,9.766e-05,2]
[356350096,1742325032284,-150.0,9.772e-05,2]
[356350099,1742325032294,-150.0,9.775e-05,2]
[356350102,1742325032304,-287.88282979,9.777e-05,2]
[356350106,1742325032314,-150.0,9.781e-05,2]
[356350108,1742325032324,-150.0,9.782e-05,2]
[356350111,1742325032334,-150.0,9.799e-05,2]
[356350114,1742325032343,-150.0,9.799e-05,2]
[356350117,1742325032352,-150.0,9.801e-05,2]
[356350119,1742325032361,-150.0,9.813e-05,2]
[356350121,1742325032371,-250.0,9.835e-05,2]
[356350123,1742325032381,-150.0,9.835e-05,2]
[356350125,1742325032390,-150.0,9.848e-05,2]
[356350128,1742325032402,-150.0,9.867e-05,2]
[356350130,1742325032412,-150.0,9.872e-05,2]
[356350132,1742325032421,-150.0,9.872e-05,2]
[356350134,1742325032431,-150.0,9.881e-05,2]
[356350136,1742325032441,-150.0,9.894e-05,2]
[356350138,1742325032450,-300.0,9.899e-05,2]
[356350140,1742325032460,-10991.67305118,9.9e-05,2]
[356350142,1742325032470,-178.004,9.9e-05,2]
[356350144,1742325032479,-150.0,9.9e-05,2]
[356350146,1742325032490,-250.0,9.9e-05,2]
[356350147,1742325032499,-552.846,9.905e-05,2]
[356350150,1742325032509,-150.0,9.905e-05,2]
[356350153,1742325032519,-150.0,9.905e-05,2]
[356350156,1742325032529,-150.0,9.909e-05,2]
[356350159,1742325032538,-150.0,9.912e-05,2]
[356350161,1742325032547,-150.0,9.914e-05,2]
[356350164,1742325032558,-150.0,9.926e-05,2]
[356350165,1742325032567,-150.0,9.931e-05,2]
[356350168,1742325032577,-150.0,9.931e-05,2]
[356350171,1742325032586,-150.0,9.934e-05,2]
[356350174,1742325032595,-150.0,9.936e-05,2]
[356350177,1742325032605,-150.0,9.937e-05,2]
[356350180,1742325032614,-150.0,9.937e-05,2]
[356350183,1742325032623,-150.0,9.939e-05,2]
[356350186,1742325032632,-150.0,9.939e-05,2]
[356350189,1742325032642,-150.0,9.944e-05,2]
[356350192,1742325032651,-150.0,9.945e-05,2]
[356350195,1742325032660,-150.0,9.947e-05,2]
[356350198,1742325032670,-150.0,9.953e-05,2]
[356350201,1742325032679,-150.0,9.954e-05,2]
[356350204,1742325032689,-151.56021208,9.955e-05,2]
[356350207,1742325032699,-150.0,9.957e-05,2]
[356350210,1742325032709,-252.22630005,9.959e-05,2]
[356350212,1742325032718,-150.0,9.959e-05,2]
[356350214,1742325032728,-1000.0,9.963e-05,2]
[356350217,1742325032738,-150.0,9.963e-05,2]
[356350219,1742325032748,-150.0,9.964e-05,2]
[356350221,1742325032758,-150.0,9.968e-05,2]
[356350222,1742325032768,-151.0,9.97e-05,2]
[356350224,1742325032777,-3936.0,9.97e-05,2]
[356350226,1742325032787,-869.646,9.97e-05,2]
[356350228,1742325032797,-150.0,9.971e-05,2]
[356350230,1742325032807,-150.0,9.973e-05,2]
[356350232,1742325032817,-150.0,9.974e-05,2]
[356350234,1742325032826,-150.0,9.98e-05,2]
[356350236,1742325032836,-709.205,9.98e-05,2]
[356350238,1742325032846,-351.82329083,9.98e-05,2]
[356350505,1742325037861,-928.17670917,9.98e-05,2]
[356350506,1742325037872,-361.13329326,9.98e-05,2]
[356350507,1742325037915,-209.86670674,9.98e-05,2]
[356350508,1742325037925,-1427.0,9.98e-05,2]
[356350509,1742325037935,-541.0,9.98e-05,2]
[356350510,1742325037945,-15957.82027624,0.0001,2]
[356350511,1742325037957,-820.25186668,0.0001,2]
[356350512,1742325037973,-864.52768447,0.0001,2]
[356350513,1742325038023,-384.1090751,0.0001,2]
[356350514,1742325038082,-320.14840894,0.0001,2]
[356350515,1742325038094,-411.93182001,0.0001,2]
[356350516,1742325038105,-627.44441083,0.0001,2]
[356350517,1742325038130,-755.92999996,0.0001,2]
[356350525,1742325040023,-629.23687052,0.0001,2]
[356350526,1742325040189,-6288.21694781,0.0001,2]
[356350527,1742325040209,-194534.56174599,0.0001,2]
[356350528,1742325040232,-997.51236652,0.0001,2]
[356350530,1742325041592,-3788.03500001,0.0001,2]
[356350531,1742325041610,-2148.2701255,0.0001,2]
[356350560,1742325043018,-10632.41659197,0.0001,2]
[356350561,1742325043036,-422.54166336,0.0001,2]
[356350562,1742325043055,-7295.34874343,0.0001,2]
[356350563,1742325043125,-2745.4001,0.0001,2]
[356350564,1742325043143,-7038.25656444,0.0001,2]
[356350570,1742325044608,-5766.17478965,0.0001,2]
[356350571,1742325044619,-1051.91736548,0.0001,2]
[356350578,1742325046049,-1114.0,9.98e-05,2]
[356350579,1742325046060,-1619.36047481,0.0001,2]
[356350581,1742325121635,1069.48,8.379e-05,2]
[356350608,1742325162365,195.83,8.166e-05,2]
[356350611,1742325710433,500.0,8.771e-05,2]
[356350612,1742325764311,9500.0,8.738e-05,2]
[356350613,1742325764338,10000.0,8.738e-05,2]
[356350614,1742325764361,4400.0,8.738e-05,2]
[356350616,1742325872483,1114.42,8.695e-05,2]
[356350617,1742325940027,1353.22,8.68e-05,2]
[356350628,1742325997162,200.0,8.715e-05,2]
[356350638,1742326185344,316.73,8.7e-05,2]
[356350644,1742326231106,156.66,6.975e-05,2]
[356350645,1742326231314,156.66,7.846e-05,2]
[356350648,1742326232029,156.66,8.718e-05,2]
[356350652,1742326232079,-150.0,9.112e-05,2]
[356350656,1742326232088,-250.0,9.112e-05,2]
[356350658,1742326232098,-27.97595981,9.147e-05,2]
[356350662,1742326232113,-122.02404019,9.147e-05,2]
[356350663,1742326232123,-250.0,9.147e-05,2]
[356350664,1742326232133,-900.73,9.167e-05,2]
[356350665,1742326232143,-175.67,9.181e-05,2]
[356350666,1742326232152,-250.0,9.183e-05,2]
[356350667,1742326232163,-154.22,9.329e-05,2]
[356350668,1742326232172,-154.22,9.36e-05,2]
[356350669,1742326232182,-154.22,9.391e-05,2]
[356350670,1742326232192,-154.22,9.422e-05,2]
[356350671,1742326232201,-154.22,9.453e-05,2]
[356350672,1742326232211,-10661.60926081,9.455e-05,2]
[356350673,1742326232230,-500.38987411,9.455e-05,2]
[356350674,1742326232248,-1979.08086508,9.455e-05,2]
[356350675,1742326232257,-154.22,9.484e-05,2]
[356350676,1742326232266,-10180.54625816,9.509e-05,2]
[356350677,1742326232283,-900.89424485,9.509e-05,2]
[356350678,1742326232294,-370.04022624,9.509e-05,2]
[356350679,1742326232311,-1391.08289891,9.509e-05,2]
[356350684,1742326232547,1016.0,8.219e-05,2]
[356351145,1742326238012,-1472.505427,9.066e-05,2]
[356351146,1742326238022,-801.90457296,9.509e-05,2]
[356351147,1742326238074,-2115.47849276,9.509e-05,2]
[356351148,1742326238123,-257.26787767,9.509e-05,2]
[356351149,1742326238134,-6066.31542845,9.509e-05,2]
[356351150,1742326238144,-154.22,9.516e-05,2]
[356351151,1742326238152,-1000.0,9.545e-05,2]
[356351152,1742326238163,-154.22,9.547e-05,2]
[356351153,1742326238173,-154.22,9.578e-05,2]
[356351154,1742326238182,-156.66,9.59e-05,2]
[356351155,1742326238191,-154.22,9.609e-05,2]
[356351156,1742326238200,-154.22,9.64e-05,2]
[356351157,1742326238210,-154.22,9.671e-05,2]
[356351158,1742326238219,-500.0,9.699e-05,2]
[356351159,1742326238228,-154.22,9.702e-05,2]
[356351160,1742326238237,-154.22,9.733e-05,2]
[356351161,1742326238247,-150.0,9.764e-05,2]
[356351162,1742326238256,-154.22,9.764e-05,2]
[356351163,1742326238265,-316.73,9.787e-05,2]
[356351164,1742326238274,-154.22,9.795e-05,2]
[356351165,1742326238283,-442.277,9.926e-05,2]
[356351167,1742326238292,-1114.0,9.98e-05,2]
[356351169,1742326238301,-1280.0,9.98e-05,2]
[356351170,1742326238311,-3936.0,9.98e-05,2]
[356351171,1742326238321,-151.0,9.98e-05,2]
[356351172,1742326238331,-150.0,9.998e-05,2]
[356351173,1742326238341,-250.0,9.998e-05,2]
[356351175,1742326238350,-4803.62758386,0.0001,2]
[356351177,1742326238370,-604.71309673,0.0001,2]
[356351178,1742326238394,-294.67237201,0.0001,2]
[356351179,1742326238404,-22386.52002904,0.0001,2]
[356351183,1742326240350,-4964.31847984,0.0001,2]
[356351184,1742326240362,-10373.6043891,0.0001,2]
[356351185,1742326240403,-839.0567373,0.0001,2]
[356351186,1742326240414,-20550.0,0.0001,2]
[356351241,1742326484926,306.81,9.435e-05,3]
[356351245,1742327230299,151.0,0.0001,3]
[356351249,1742327300270,156.66,7.296e-05,2]
[356351250,1742327311679,965.2,8.219e-05,2]
[356351253,1742327432412,-250.0,9e-05,2]
[356351254,1742327432422,-150.0,9.057e-05,2]
[356351255,1742327432432,-250.0,9.057e-05,2]
[356351256,1742327432442,-242.05,9.12e-05,2]
[356351257,1742327432451,-1000.0,9.12e-05,2]
[356351258,1742327432461,-250.0,9.205e-05,2]
[356351259,1742327432471,-161.85,9.455e-05,2]
[356351260,1742327432481,-21738.71756843,9.455e-05,2]
[356351261,1742327432493,-452.45243157,9.455e-05,2]
[356351262,1742327432502,-161.85,9.534e-05,2]
[356351263,1742327432512,-161.85,9.613e-05,2]
[356351264,1742327432522,-161.85,9.691e-05,2]
[356351265,1742327432532,-165.01,9.719e-05,2]
[356351266,1742327432542,-161.85,9.77e-05,2]
[356351267,1742327432552,-1525.62,9.77e-05,2]
[356351268,1742327432562,-1051.10229692,9.8e-05,2]
[356351269,1742327432571,-1439.27177182,9.8e-05,2]
[356351270,1742327432581,-153.4910497,9.842e-05,2]
[356351271,1742327432590,-161.85,9.849e-05,2]
[356351272,1742327432600,-150.0,9.881e-05,2]
[356351273,1742327432610,-150.0,9.9e-05,2]
[356351274,1742327432620,-150.0,9.9e-05,2]
[356351275,1742327432629,-250.0,9.9e-05,2]
[356351276,1742327432638,-161.85,9.928e-05,2]
[356351277,1742327432650,-150.0,9.978e-05,2]
[356351278,1742327432659,-571.0,9.98e-05,2]
[356351279,1742327432669,-151.0,9.98e-05,2]
[356351280,1742327432678,-963.31888922,9.98e-05,2]
[356351283,1742327432690,-2972.68111078,9.98e-05,2]
[356351285,1742327432699,-150.0,9.98e-05,2]
[356351286,1742327432708,-372.836,9.98e-05,2]
[356351289,1742327432718,-250.0,9.996e-05,2]
[356351291,1742327432728,-1099.66895685,9.999e-05,2]
[356351292,1742327432737,-216.53703076,9.999e-05,2]
[356351293,1742327432746,-2073.62964954,0.0001,2]
[356351733,1742327438229,-5402.82925876,0.0001,2]
[356351734,1742327438245,-15050.98270258,0.0001,2]
[356351735,1742327438264,-31185.5504714,0.0001,2]
[356351736,1742327438281,-1094.54828037,0.0001,2]
[356351737,1742327438311,-947.85652924,0.0001,2]
[356351738,1742327438348,-6224.572055,0.0001,2]
[356351739,1742327438366,-9547.37304,0.0001,2]
[356351740,1742327438392,-384.37763108,0.0001,2]
[356351741,1742327438499,-949.242,0.0001,2]
[356351751,1742327440543,-3429.73,0.0001,2]
[356351752,1742327440596,-242566.95577015,0.0001,2]
[356351753,1742327440652,-929.6864783,0.0001,2]
[356351754,1742327440670,-712.24139104,0.0001,2]
[356351755,1742327440706,-13855.55449454,0.0001,2]
[356351756,1742327440725,-520.97500005,0.0001,2]
[356351757,1742327440743,-2549.05889236,0.0001,2]
[356351759,1742327440762,-1612.23629074,0.0001,2]
[356351798,1742327443672,-862.72549421,0.0001,2]
[356351800,1742327443683,-890.58,0.0001,2]
[356351802,1742327443695,-181325.8120158,0.0001,2]
[356351805,1742327443713,-41294.69998397,0.0001,2]
[356351898,1742327444896,-996.59224999,0.0001,2]
[356351899,1742327444908,-438.60309297,0.0001,2]
[356351900,1742327444920,-4304.3,0.0001,2]
[356351901,1742327444931,-481433.07450106,0.0001,2]
[356351903,1742327446295,-423236.47735848,0.0001,2]
[356351904,1742327446307,-597.37075396,0.0001,2]
[356351905,1742327446406,-2606.15425928,0.0001,2]
[356351906,1742327446458,-24984.996,0.0001,2]
[356351907,1742327446514,-329999.99999972,0.0001,2]
[356351908,1742327446568,-673.56220807,0.0001,2]
[356351909,1742327446581,-452.77499993,0.0001,2]
[356351910,1742327446593,-476.87996005,0.0001,2]
[356351911,1742327446627,-449.79419959,0.0001,2]
[356351912,1742327446639,-67959.41724,0.0001,2]
[356352187,1742328324861,7.79,8.219e-05,2]
[356352188,1742328324884,1314.45,8.219e-05,2]
[356352192,1742328489516,174.34,8.863e-05,2]
[356352193,1742328492924,1981.53,8.863e-05,2]
[356352194,1742328505406,1000.0,8.827e-05,2]
[356352195,1742328541060,200.0,8.839e-05,2]
[356352203,1742328583214,354.74,8.839e-05,2]
[356352205,1742328631415,-155.0896,8.94e-05,2]
[356352206,1742328631425,-1008.21679126,8.955e-05,2]
[356352207,1742328631436,-192.28257374,8.955e-05,2]
[356352208,1742328631446,-150.0,8.977e-05,2]
[356352209,1742328631455,-250.0,8.977e-05,2]
[356352210,1742328631465,-250.0,9e-05,2]
[356352211,1742328631475,-250.0,9.015e-05,2]
[356352212,1742328631484,-91.89024004,9.039e-05,2]
[356352213,1742328631497,-58.10975996,9.039e-05,2]
[356352214,1742328631506,-500.0,9.039e-05,2]
[356352215,1742328631516,-87.87274505,9.039e-05,2]
[356352216,1742328631527,-141.81773122,9.039e-05,2]
[356352217,1742328631537,-397.08552188,9.039e-05,2]
[356352218,1742328631547,-151.57592153,9.039e-05,2]
[356352219,1742328631556,-500.0,9.039e-05,2]
[356352220,1742328631566,-676.35702084,9.04e-05,2]
[356352221,1742328631577,-349811.78813117,9.04e-05,2]
[356352222,1742328631589,-6815.36990892,9.04e-05,2]
[356352223,1742328631600,-778.82933618,9.04e-05,2]
[356352224,1742328631612,-1997.21734795,9.04e-05,2]
[356352225,1742328631623,-2362.15462059,9.04e-05,2]
[356352226,1742328631635,-712.02367317,9.04e-05,2]
[356352227,1742328631683,-1036.92088886,9.04e-05,2]
[356352228,1742328631694,-396182.27206772,9.04e-05,2]
[356352229,1742328631706,-370481.15047248,9.04e-05,2]
[356352529,1742328638076,-411.05836626,9.04e-05,2]
[356352530,1742328638093,-22804.29475368,9.04e-05,2]
[356352531,1742328638108,-687561.9265914,9.04e-05,2]
[356352537,1742328639635,-491.47098,9.04e-05,2]
[356352538,1742328639742,-855.07942252,9.04e-05,2]
[356352539,1742328639849,-860.36499239,9.04e-05,2]
[356352554,1742328642518,-2122.82465148,9.04e-05,2]
[356352555,1742328642530,-13342.1753065,9.04e-05,2]
[356352558,1742328643523,-14122.87845102,9.04e-05,2]
[356352559,1742328645551,-16902.33154607,9.04e-05,2]
[356352560,1742328645707,-568.9749969,9.04e-05,2]
[356352667,1742328654851,448.79,8.904e-05,2]
[356352820,1742328716631,1062.01,8.904e-05,2]
[356352976,1742328728692,151.0,0.0001,3]
[356353115,1742328836032,150.27,8.816e-05,2]
[356353116,1742328869774,200.0,8.796e-05,2]
[356353139,1742328917543,1975.97560836,0.00022,120]
[356353147,1742328938603,164.96,8.837e-05,2]
[356353148,1742329028824,246.65129022,0.0001,3]
[356353151,1742329060683,880.9,8.837e-05,2]
[356353152,1742329094870,2000.0,8.775e-05,2]
[356353153,1742329110462,68.01,8.859e-05,2]
[356353154,1742329110487,721.003,8.859e-05,2]
[356353184,1742329241759,9278.997,8.531e-05,2]
[356353185,1742329241783,10000.0,8.531e-05,2]
[356353186,1742329241804,4621.003,8.531e-05,2]
[356353188,1742329285396,198.16,8.805e-05,2]
[356353200,1742329464183,538.35,8.876e-05,2]
[356353207,1742329541476,173.04,8.777e-05,2]
[356353213,1742329576444,1350.7,8.219e-05,2]
[356353214,1742329578797,1000.0,8.609e-05,2]
[356353278,1742329752208,-250.0,8.921e-05,2]
[356353281,1742329752254,-250.0,8.921e-05,2]
[356353284,1742329752298,-150.0,8.921e-05,2]
[356353286,1742329752341,-250.0,8.93e-05,2]
[356353288,1742329752755,-300.0,8.939e-05,2]
[356353289,1742329752782,-1769.9121,8.94e-05,2]
[356353290,1742329752809,-2736.5145,8.94e-05,2]
[356353291,1742329752836,-358.1247,8.94e-05,2]
[356353292,1742329752862,-199.82760161,8.94e-05,2]
[356353293,1742329752888,-1221.74184161,8.94e-05,2]
[356353294,1742329752918,-7486.12074322,8.94e-05,2]
[356353295,1742329752949,-2444.64636695,8.94e-05,2]
[356353296,1742329757072,250.0,8.777e-05,2]
[356353297,1742329775521,531.0,8.589e-05,2]
[356353299,1742329777104,-7834.45850028,8.94e-05,2]
[356353304,1742329777315,-7046.76110539,8.94e-05,2]
[356353305,1742329802223,-300.0,8.939e-05,2]
[356353307,1742329802250,-3994.13874255,8.94e-05,2]
[356353308,1742329802276,-1190.8622,8.94e-05,2]
[356353310,1742329802303,-2647.08194985,8.975e-05,2]
[356353311,1742329802337,-873.03212521,8.975e-05,2]
[356353319,1742329831656,-150.0,8.957e-05,2]
[356353320,1742329831666,-2055.72592494,8.975e-05,2]
[356353321,1742329831675,-473.62215336,9.029e-05,2]
[356353322,1742329831685,-150.0,9.038e-05,2]
[356353323,1742329831695,-126.15460558,9.039e-05,2]
[356353324,1742329831775,-1354.40593989,9.039e-05,2]
[356353325,1742329831787,-881.58945453,9.039e-05,2]
[356353326,1742329831796,-125.12966765,9.039e-05,2]
[356353327,1742329831833,-724.0,9.039e-05,2]
[356353421,1742329837647,-929.41239997,9.039e-05,2]
[356353517,1742329840515,-0.0073954,9.039e-05,2]
[356353640,1742329855420,163.02,8.844e-05,2]
[356353646,1742330103284,-150.0,8.94e-05,2]
[356353648,1742330345603,1174.727,8.764e-05,2]
[356353649,1742330345627,10000.0,8.764e-05,2]
[356353650,1742330345649,10000.0,8.764e-05,2]
[356353651,1742330345671,2725.273,8.764e-05,2]
[356353654,1742330443271,-804.4766,8.94e-05,2]
[356353655,1742330535753,276.5665,8.84e-05,2]
[356353657,1742330644143,-150.99,8.939e-05,2]
[356353658,1742330647502,1283.16,8.219e-05,2]
[356353659,1742330661110,174.34,8.713e-05,2]
[356353660,1742330703592,150.0,8.904e-05,2]
[356353663,1742330808909,1000.0,8.679e-05,2]
[356353664,1742330822960,250.0,8.679e-05,2]
[356353669,1742330941968,-300.0,8.938e-05,2]
[356353670,1742330941999,-175.71889321,8.939e-05,2]
[356353671,1742330942030,-187.36458671,8.939e-05,2]
[356353672,1742330942058,-500.0,8.939e-05,2]
[356353673,1742330942086,-311.77197113,8.939e-05,2]
[356353674,1742330942126,-500.0,8.939e-05,2]
[356353675,1742330942154,-251.58473965,8.939e-05,2]
[356353676,1742330942183,-5609.11912813,8.94e-05,2]
[356353677,1742330942225,-6446.31189001,8.94e-05,2]
[356353678,1742330966754,-8121.19674301,8.94e-05,2]
[356353679,1742330966806,-4310.16115379,8.94e-05,2]
[356353680,1742330992906,-322.25108506,8.94e-05,2]
[356353681,1742330992935,-250.0,8.94e-05,2]
[356353682,1742330992962,-4081.9959,8.94e-05,2]
[356353683,1742330992988,-500.0,8.94e-05,2]
[356353684,1742330993016,-1192.5779,8.94e-05,2]
[356353685,1742330993043,-856.0322,8.94e-05,2]
[356353686,1742330993069,-471.0743,8.94e-05,2]
[356353687,1742330993096,-695.89251589,8.94e-05,2]
[356353688,1742330993128,-5882.85834385,8.94e-05,2]
[356353689,1742331014601,164.47,8.685e-05,2]
[356353690,1742331014826,164.47,8.772e-05,2]
[356353691,1742331015266,164.47,8.858e-05,2]
[356353692,1742331016336,265.5,8.685e-05,2]
[356353693,1742331031768,-300.0,8.939e-05,2]
[356353694,1742331031777,-250.0,8.94e-05,2]
[356353695,1742331031786,-647.68664026,8.94e-05,2]
[356353696,1742331031795,-471.4584,8.94e-05,2]
[356353697,1742331031804,-72462.42881851,8.94e-05,2]
[356353698,1742331031816,-2638.46326008,8.94e-05,2]
[356353699,1742331031827,-3939.2404651,8.94e-05,2]
[356353700,1742331031839,-3043.56735631,8.94e-05,2]
[356353701,1742331031848,-175.7188932,8.94e-05,2]
[356353702,1742331031857,-4483.38401801,8.94e-05,2]
[356353703,1742331031875,-435.84945863,8.94e-05,2]
[356353704,1742331031886,-4873.03523845,8.94e-05,2]
[356353705,1742331031903,-540.0,8.94e-05,2]
[356353706,1742331031914,-535.47,8.94e-05,2]
[356353707,1742331031925,-123.93428491,8.94e-05,2]
[356353708,1742331031934,-164.47,8.945e-05,2]
[356353709,1742331031943,-6043.36699515,8.95e-05,2]
[356353710,1742331031954,-298.695,8.95e-05,2]
[356353711,1742331031965,-445.49189213,8.95e-05,2]
[356353712,1742331031977,-2257.03968916,8.95e-05,2]
[356353713,1742331031992,-4561.16061818,8.95e-05,2]
[356353714,1742331032004,-2443.11473918,8.95e-05,2]
[356353715,1742331032013,-250.0,9e-05,2]
[356353716,1742331032023,-800.17992545,9.029e-05,2]
[356353717,1742331032035,-1396.28605025,9.029e-05,2]
[356353718,1742331032053,-1981.65944888,9.029e-05,2]
[356353719,1742331032065,-1408.23194328,9.029e-05,2]
[356353720,1742331032074,-164.47,9.032e-05,2]
[356353721,1742331032083,-312.97830542,9.04e-05,2]
[356353822,1742331037703,-218.24037979,9.039e-05,2]
[356353823,1742331037713,-500.0,9.039e-05,2]
[356353824,1742331037722,-376.10931775,9.039e-05,2]
[356353825,1742331037732,-2062.07680553,9.04e-05,2]
[356353826,1742331037743,-11323.77274692,9.04e-05,2]
[356353827,1742331037760,-1140.74733743,9.04e-05,2]
[356353828,1742331037820,-9061.49703077,9.04e-05,2]
[356353829,1742331037832,-2854.40002,9.04e-05,2]
[356353830,1742331037847,-20149.97229954,9.04e-05,2]
[356353831,1742331037877,-188146.78957793,9.04e-05,2]
[356353832,1742331037889,-603.465158,9.04e-05,2]
[356353833,1742331037900,-848.6840014,9.04e-05,2]
[356353945,1742331039915,-696.498077,9.04e-05,2]
[356353946,1742331040105,-96155.05713446,9.04e-05,2]
[356353947,1742331040117,-107585.30971539,9.04e-05,2]
[356353948,1742331040128,-1011.06427204,9.04e-05,2]
[356353949,1742331040144,-1090.1673883,9.04e-05,2]
[356353950,1742331040161,-319.83586182,9.04e-05,2]
[356353951,1742331040454,-4594.79109732,9.04e-05,2]
[356353952,1742331040466,-1375.4138,9.04e-05,2]
[356353953,1742331040477,-963.19752,9.04e-05,2]
[356353977,1742331042814,-13880.54347025,9.04e-05,2]
[356353979,1742331042826,-111207.3299829,9.04e-05,2]
[356353980,1742331042876,-109668.87610268,9.04e-05,2]
[356353981,1742331042888,-72462.32164005,9.04e-05,2]
[356353990,1742331043499,-1875.56927,9.04e-05,2]
[356353991,1742331043511,-11869.66841083,9.04e-05,2]
[356353992,1742331043521,-361.45361106,9.04e-05,2]
[356353993,1742331043533,-2803.85817402,9.04e-05,2]
[356353994,1742331043544,-12888.52295393,9.04e-05,2]
[356353995,1742331043555,-1943.25529658,9.04e-05,2]
[356353996,1742331043567,-1091.42526807,9.04e-05,2]
[356353997,1742331045198,200.0,8.5e-05,3]
[356354171,1742331047311,500.0,8.6e-05,3]
[356354172,1742331049439,700.0,8.7e-05,3]
[356354173,1742331051502,1000.0,8.8e-05,3]
[356354174,1742331053587,1300.0,8.9e-05,3]
[356354175,1742331055683,200.0,9e-05,3]
[356354176,1742331059194,200.0,9.8e-05,3]
[356354177,1742331059899,200.0,9.9e-05,3]
[356354178,1742331062002,200.0,0.0001,3]